Cogmind - Beta 12 @@@ ROGUE MODE // 2024.01.22 @ 14:27:21 Player: Dosh Result: Destroyed by D-53 Grenadier with Mini Grenade Launcher Performance ------------- Evolutions (0) 0 Regions Visited (2) 400 Robots Destroyed (23) 115 Value Destroyed (456) 456 Prototype IDs (0) 0 Alien Tech Used (0) 0 Bonus (0) 0 TOTAL SCORE: 971 Bonus ------- None Cogmind --------- Core Integrity 0/250 Matter 288/300 Energy 44/250 System Corruption 0% Temperature Cool (45) Movement Core (450) Ox8 Location -10/Mines Parts ------- > --- POWER (1) -------- Ion Engine > --- PROPULSION (2) --- Light Treads > --- UTILITY (2) ------ Large Storage Unit > --- WEAPON (2) ------- EM Pulse Gun > --- INVENTORY (15) --- Ion Engine Light Treads Huge Storage Unit Structural Scanner Improved Terrain Scanner Light Armor Plating Hacking Suite Peak State ------------ > --- POWER ------------ Ion Engine > --- PROPULSION ------- Light Treads Light Treads > --- UTILITY ---------- Small Storage Unit Shield Generator > --- WEAPON ----------- EM Pulse Gun Light Assault Rifle > --- INVENTORY -------- Ion Engine Wheel Huge Storage Unit Structural Scanner Improved Terrain Scanner Hacking Suite Light Cannon [Rating: 9] Favorites ----------- Power Ion Engine Engine Ion Engine Propulsion Light Treads Treads Light Treads Wheel Wheel Utility Small Storage Unit Device Shield Generator Storage Small Storage Unit Weapon EM Pulse Gun Energy Gun EM Pulse Gun Ballistic Gun Light Assault Rifle Ballistic Cannon Light Cannon Build | -11 -10 -10 ------- Run | Jun Mat Min Slots Evolved . | . . . Power . | . . . Propulsion . | . . . Utility . | . . . Weapon . | . . . Parts Attached 12 | 6 4 2 Power 1 | 1 . . Engine 1 | 1 . . Core . | . . . Reactor . | . . . Propulsion 3 | 2 . 1 Treads 2 | 2 . . Leg . | . . . Wheel 1 | . . 1 Hover . | . . . Flight . | . . . Utility 4 | 1 2 1 Device 2 | . 1 1 Storage 2 | 1 1 . Processor . | . . . Hackware . | . . . Protection . | . . . Artifact . | . . . Weapon 4 | 2 2 . Energy Gun 2 | 1 1 . Energy Cannon . | . . . Ballistic Gun 1 | 1 . . Ballistic Cannon 1 | . 1 . Launcher . | . . . Special Weapon . | . . . Impact Weapon . | . . . Slashing Weapon . | . . . Piercing Weapon . | . . . Special Melee Weapon . | . . . Unidentified Prototypes . | . . . Parts Lost 4 | . . 4 Power . | . . . Propulsion 1 | . . 1 Utility 2 | . . 2 Weapon 1 | . . 1 Highest Loss Streak 4 | . . 4 To Critical Strikes . | . . . Average Slot Usage (%) 89 | . 88 96 Engine 14 | . 14 14 Treads 27 | . 28 23 Device 4 | . 4 13 Storage 14 | . 14 14 Energy Gun 13 | . 13 14 Ballistic Gun 9 | . 10 . Ballistic Cannon 4 | . 3 13 Naked Turns . | . . . Heaviest Build 32 | 13 32 32 Greatest Support 40 | 40 40 40 Greatest Overweight (x) 3 | 3 . 3 Average Overweight (x) . | . . 1 Largest Inventory Capacity 15 | 8 15 15 Average Capacity 8 | 7 8 15 Most Carried 8 | 3 8 8 Average Carried 5 | 1 5 7 Final Capacity 15 | 8 15 15 Final Carried 8 | 3 8 7 Class Distribution -------------------- 100% | Mutant Dominant Class ---------------- Mutant | -10/Materials Mutant | -10/Mines Resources | -11 -10 -10 ----------- Run | Jun Mat Min Matter Collected 445 | 262 139 44 Remotely . | . . . Salvage Created 732 | 83 619 30 Parts 56 | 7 46 3 Haulers Intercepted 2 | . 2 . Recyclers Shooed 2 | . 2 . Parts Field Recycled . | . . . Retrieved Matter . | . . . Parts Self-Destructed . | . . . Prevented . | . . . Kills | -11 -10 -10 ------- Run | Jun Mat Min Combat Hostiles Destroyed 14 | . 11 3 Guns 10 | . 9 1 Cannons 2 | . . 2 AOE 2 | . 2 . Classes Destroyed 9 | 2 6 1 Worker 1 | . 1 . Tunneler 1 | 1 . . Hauler 2 | . 2 . Recycler 1 | 1 . . Operator 2 | . 2 . Watcher 3 | . 3 . Swarmer 5 | . 3 2 Grunt 8 | . 8 . Assembled 1 | . . 1 Best Kill Streak 5 | 2 5 2 Combat Bots Only 5 | . 5 2 Max Kills in Single Turn 1 | 1 1 1 Gunslinging . | . . . Exploded 1 | . 1 . Melee . | . . . Uniques/NPCs Destroyed . | . . . Combat | -11 -10 -10 -------- Run | Jun Mat Min Damage Taken 942 | . 362 580 Core 271 | . 64 207 Absorbed by Shields 180 | . 46 134 Regen/Repaired (Parts) 40 | . 40 . Core Remaining (%) 100 | 100 . . Volleys Fired 84 | 2 66 16 Largest 2 | 2 2 2 Hottest 75 | 60 75 75 Shots Fired 166 | 4 132 30 Gun 141 | 4 121 16 Cannon 25 | . 11 14 Launcher . | . . . Special . | . . . Kinetic 82 | 2 66 14 Thermal . | . . . Explosive . | . . . Electromagnetic 84 | 2 66 16 Robot Hit Streak 10 | 2 10 3 Robot Miss Streak 7 | 1 7 6 Penetration Max . | . . . Secondary Targets . | . . . Shots Hit Robots 98 | 2 87 9 Core Hits 41 | 3 34 4 Critical Kills . | . . . Critical Parts Destroyed . | . . . Critical Strikes . | . . . Melee Attacks . | . . . Impact . | . . . Slashing . | . . . Piercing . | . . . Sneak Attacks . | . . . Combat Hostiles . | . . . Follow-up Attacks . | . . . Damage Inflicted 1558 | 35 1217 306 Guns 1029 | 35 910 84 Cannons 174 | . 102 72 Explosions 351 | . 201 150 Melee . | . . . Ramming 4 | . 4 . Kinetic 478 | 10 396 72 Thermal 351 | . 201 150 Explosive . | . . . Electromagnetic 725 | 25 616 84 Impact . | . . . Slashing . | . . . Piercing . | . . . Highest Corruption . | . . . Average Corruption . | . . . Corruption Purged . | . . . Corruption Blocked . | . . . Overload Shots . | . . . Overflow Damage 10 | . 9 1 Projectiles . | . . . Explosions 10 | . 9 1 Melee . | . . . Knockbacks . | . . . Impact . | . . . Kinetic . | . . . Secondary . | . . . Self-Inflicted Damage . | . . . Shots . | . . . Rammed 3 | . 3 . Targets Rammed 3 | . 3 . Kicked . | . . . Crushed . | . . . Highest Temperature 165 | 20 140 165 Average Temperature 46 | 15 40 71 Received Heat Transfer 234 | . 177 57 Siege Activations . | . . . Robots Corrupted 1 | . 1 . Combat Hostiles . | . . . Parts Fried 3 | . 2 1 Impact Corruptions . | . . . Robots Melted . | . . . Combat Hostiles . | . . . Parts Melted 1 | . 1 . Heat Transferred 350 | . 200 150 Parts Sabotaged . | . . . Parts Stolen . | . . . Parts Stripped . | . . . Power Chain Reactions 4 | . 3 1 Missiles Intercepted . | . . . Alert | -11 -10 -10 ------- Run | Jun Mat Min Peak Influence 241 | 10 241 75 Initial 6 | . 6 5 Average 76 | 3 83 64 Maximum Alert Level 1 | . 1 . Low Security (%) 87 | 100 84 100 Level 1 12 | . 15 . Level 2 . | . . . Level 3 . | . . . Level 4 . | . . . Level 5 . | . . . High Security . | . . . Max Security . | . . . Squads Dispatched 3 | . 3 . Investigation 1 | . 1 . Extermination . | . . . Reinforcement 2 | . 2 . Assault . | . . . Garrison . | . . . Intercept . | . . . Searches Triggered . | . . . Construction Impeded . | . . . Haulers Reinforced . | . . . Active Scanning Responses . | . . . Cargo Convoy Interrupts . | . . . Stealth | -11 -10 -10 --------- Run | Jun Mat Min Distress Signals . | . . . Communications Jammed . | . . . Distress Signals . | . . . Times Spotted 38 | . 16 22 Peak Tracking Total 16 | . 3 16 Tactical Retreats 2 | . . 2 Traps | -11 -10 -10 ------- Run | Jun Mat Min Traps Triggered 1 | . 1 . Indirectly . | . . . Trap Hack Attempts . | . . . Triggered . | . . . Disarmed . | . . . Reprogrammed . | . . . Reused . | . . . Traps Extracted . | . . . Installed . | . . . Triggered . | . . . Machines | -11 -10 -10 ---------- Run | Jun Mat Min Machines Disabled 1 | . . 1 Max in Single Turn 1 | . . 1 Machines Repaired . | . . . Machines Sabotaged . | . . . Overloaded Fab Kills . | . . . Hacking | -11 -10 -10 --------- Run | Jun Mat Min Machines Accessed 8 | . 8 . Terminals 6 | . 6 . Fabricators . | . . . Repair Stations 1 | . 1 . Recycling Units 1 | . 1 . Scanalyzers . | . . . Garrison Access . | . . . Total Hacks 16 | . 16 . Successful 11 | . 11 . Failed 5 | . 5 . Catastrophic . | . . . Database Lockouts . | . . . Manual 13 | . 13 . Terminals 11 | . 11 . Fabricators . | . . . Repair Stations 4 | . 4 . Recycling Units 1 | . 1 . Scanalyzers . | . . . Garrison Access . | . . . Terminal Hacks 4 | . 4 . Part Schematic 1 | . 1 . Robot Analysis 2 | . 2 . Hauler Manifests 1 | . 1 . Fabricator Hacks . | . . . Repair Station Hacks 3 | . 3 . Scan Component 2 | . 2 . Repair 1 | . 1 . Recycling Unit Hacks . | . . . Scanalyzer . | . . . Garrison Access Hacks . | . . . Unauthorized Hacks 4 | . 4 . Terminals 3 | . 3 . Botnet 2 | . 2 . Operators 1 | . 1 . Fabricators . | . . . Repair Stations . | . . . Recycling Units 1 | . 1 . Tunnel 1 | . 1 . Scanalyzers . | . . . Garrison Access . | . . . Data Cores Recovered . | . . . Used . | . . . Hacking Detections 7 | . 7 . Full Trace Events . | . . . Feedback Events . | . . . Feedback Blocked . | . . . Robot Schematics Acquired . | . . . Robots Built . | . . . Authchips . | . . . Time . | . . . Total Robot Build Rating . | . . . Part Schematics Acquired 1 | . 1 . Parts Built . | . . . Authchips . | . . . Time . | . . . Total Part Build Rating . | . . . Parts Repaired 1 | . 1 . Time 36 | . 36 . Parts Recycled . | . . . Recycled Matter . | . . . Retrieved Matter . | . . . Retrieved Components . | . . . Parts Scanalyzed . | . . . Part Schematics Acquired . | . . . Parts Damaged . | . . . Bothacking | -11 -10 -10 ------------ Run | Jun Mat Min Used RIF Installer . | . . . Robots Hacked . | . . . Non-combat . | . . . Combat . | . . . Robot Hacks Applied . | . . . Relay Couplers Released . | . . . Fabnet Peak Effective % . | . . . Robots Rewired . | . . . Allies Hacked . | . . . Hacks Repelled . | . . . Allies | -11 -10 -10 -------- Run | Jun Mat Min Total Allies . | . . . Largest Group . | . . . Highest-Rated Group . | . . . Highest-Rated Ally . | . . . Total Orders . | . . . Ally Attacks . | . . . Total Damage . | . . . Kills . | . . . Allies Corrupted . | . . . Allies Melted . | . . . Intel | -11 -10 -10 ------- Run | Jun Mat Min Robot Analysis Total 2 | . 2 . Derelict Logs Recovered . | . . . Drone Launches . | . . . Drone Recoveries . | . . . Exploration | -11 -10 -10 ------------- Run | Jun Mat Min Turns Passed 1749 | 120 1498 131 Spaces Moved 902 | 74 772 56 Core 24 | 24 . . Treads 854 | 50 772 32 Legs . | . . . Wheels 24 | . . 24 Hover . | . . . Flight . | . . . Fastest Speed 50 | 50 160 125 Average Speed 157 | 140 160 145 Slowest Speed 200 | 200 160 160 Overloaded Moves . | . . . Propulsion Burnouts . | . . . Robots Hopped . | . . . Cave-ins Triggered . | . . . Exploration Rate (%) 41 | 5 98 20 Regions Visited 2 Branch Regions 1 Pre-discovered Areas 1 | . 1 . Known Exits Taken . | . . . Unknown Exits Taken 2 | 1 1 . Scrap Searched . | . . . Spaces Dug . | . . . Terrain Destroyed 14 | . 14 . Melee . | . . . Projectile . | . . . AOE 14 | . 14 . Terrain Rammed . | . . . Walls Destroyed . | . . . Machines Disabled . | . . . Actions | -11 -10 -10 --------- Run | Jun Mat Min Total 1071 | 84 912 75 Wait 61 | . 60 1 Move 900 | 73 771 56 Hop . | . . . Pick Up 9 | 3 6 . Fast Attach 8 | 6 2 . Attach 2 | . 1 1 Detach . | . . . Swap 2 | . 1 1 Drop 2 | . 2 . Fire 84 | 2 66 16 Melee . | . . . Ram . | . . . Kick . | . . . Crush 3 | . 3 . Escape Stasis . | . . . Rewire . | . . . Trap . | . . . Miscellaneous . | . . . Route ------- -11/Junkyard -10/Materials (discovered 5 exits: [*Mat x3] / [*Min x2]) -10/Mines History --------- Turn | Location | Event 26 | -11/Junkyard | Discovered new exit (range 15) 121 | -11/Junkyard | Entered Materials 312 | -10/Materials | Build established: Mutant 344 | -10/Materials | Discovered new exit (range 9) 645 | -10/Materials | Repaired Broken EM Pulse Gun 877 | -10/Materials | Discovered new exit (range 9) 952 | -10/Materials | Discovered new exit (range 16) 1171 | -10/Materials | Discovered new exit (range 9) 1512 | -10/Materials | Discovered new exit (range 13) 1619 | -10/Materials | Entered Mines 1641 | -10/Mines | Met a Derelict bent on vengeance 1701 | -10/Mines | Assembled infested the area 1739 | -10/Mines | Core integrity fell below 50% 1747 | -10/Mines | Core integrity fell below 20% 1750 | -10/Mines | Destroyed by D-53 Grenadier with Mini Grenade Launcher Last Messages --------------- 01727_ as-48957 destroyed. 01730_ as-00534 destroyed. 01730_ as-36926 destroyed. 01730_ as-87169 destroyed. 01731_ as-26647 destroyed. 01732_ as-68929 destroyed. 01733_ as-96811 destroyed. 01733_ as-87046 destroyed. 01734_ Shield Generator destroyed. 01735_ as-58774 destroyed. 01735_ as-73604 destroyed. 01737_ Chain reaction triggered in Lgt. Deuterium Engine. 01739_ The unstable cave ceiling collapses. 01740_ as-53294 destroyed. 01741_ D-53 Grenadier destroyed. 01743_ The unstable cave ceiling collapses. 01746_ Shield Generator destroyed. 01746_ Lgt. Cannon destroyed. 01748_ Wheel destroyed. 01749_ The unstable cave ceiling collapses. Map ----- +----------------------------------------------------+ | ????????# """ """ [#?????????????????????????????? | | ????????# """ "" *=#?????????????????????????????? | | ????????# #?????????????????????????????? | | ????????# """ #?????????????????????????????? | | ????????# """ #?????????????????????????????? | | ????????# """ #?????????????????????????????? | | ???????# #?????????????????????????????? | | ##????##### ######?????????????????????????????? | | ??####?# #??????????????????????????????????? | | ?? #?# #??????????????????????????????????? | | ?# #?# #????????? ?????????????????????? | | ## ### #????????? #????????????????????? | | #????????? #????????????????????? | | #????????# #????????????????????? | | ## ## ##????????# #????????????????????? | | ?## ## #?????????# % #????????????????????? | | ??## ### ##????????# ##???????????????????? | | ???#######?# ## #????### ##??????????????????? | | ???????????#a ?### ##?????????????????? | | ???????????# %% # ###???????????????? | | ???????????#% # ##??????????????? | | ???????????# ## #??????????? | | ???????????## # d ????????????? | | ???????????# ???????????????? | | ???????????# #??????????????????? | | ?????????????# @ #??????????????????? | | ?????????????# # #??????????????????? | | ?????????????# # #??????????????????? | | ?????????????## #### # ##??????????????????? | | ???????????????????#### ##???????????????????? | | ??????????????????????#######????????????????????? | | ?????????????????????????????????????????????????? | | ?????????????????????????????????????????????????? | | ?????????????????????????????????????????????????? | | ?????????????????????????????????????????????????? | | ?????????????????????????????????????????????????? | | ?????????????????????????????????????????????????? | | ?????????????????????????????????????????????????? | | ?????????????????????????????????????????????????? | | ?????????????????????????????????????????????????? | | ?????????????????????????????????????????????????? | | ?????????????????????????????????????????????????? | | ?????????????????????????????????????????????????? | | ?????????????????????????????????????????????????? | | ?????????????????????????????????????????????????? | | ?????????????????????????????????????????????????? | | ?????????????????????????????????????????????????? | | ?????????????????????????????????????????????????? | | ?????????????????????????????????????????????????? | | ?????????????????????????????????????????????????? | +----------------------------------------------------+ Best States ------------- Heat Dissipation 25 Energy Generation 10 Energy Capacity 250 Matter Stores 300 Matter Capacity 300 Sight Range 16 Terrain Scan Density 10 Evasion (%) 40 Recoil Reduction 2 Item Schematics ----------------- Hcp. Storage Unit | -10/Materials | Hacked Robot Schematics ------------------ None Fabricated ------------ Nothing Alien Tech Used ----------------- None Achievements -------------- None Challenges ------------ None Game ------ Seed PulseHardlightNetwork Manual? 0 Play Time 00:09:45 Cumulative 126.7 hours Start 2024.01.22 @ 14:18:52 End 2024.01.22 @ 14:27:21 Sessions 1 Manual Loads 0 Difficulty Rogue Special Mode None Game No. 125 Rogue 125 Adventurer 0 Explorer 0 Win Type - Total 2 Types 2/0/0/0/0/0/0/0/0 Lore% 56 Gallery% 62 Achievement% 53 Wizard Run 0 Options --------- ASCII 0 Keyboard 1 Movement Numpad Keybinds 0 Fullscreen 2 Font 18/SmallcapsGlow Map View 76x50 Tactical HUD 1 Map Filters NONE Filters NONE Steam 1 RUN: 0048df3a-b11f-4f97-97a7-ff51523e1a8c